fUST/lending_fUST_20240720
["ID","MTS","AMOUNT","RATE_DAILY","PERIOD"]
[332724644,1721483439189,-50158.4498083,0.00015736,2]
[332724645,1721483439199,-10602.80442942,0.00015744,2]
[332724646,1721483439210,-9635.93595369,0.00015744,2]
[332724647,1721483439220,-5513.05891957,0.00015744,2]
[332724648,1721483439229,-1044.05000901,0.00015744,2]
[332724649,1721483439240,-1161.38988049,0.00015744,2]
[332724650,1721483439250,-2708.88208775,0.00015744,2]
[332724651,1721483439260,-887.20196723,0.00015744,2]
[332724652,1721483439272,-285.1295,0.00015746,2]
[332724653,1721483439281,-285.1295,0.00015746,2]
[332724654,1721483439291,-2213.3379845,0.00015746,2]
[332724655,1721483439300,-2426.31493042,0.00015746,2]
[332724656,1721483439310,-1107.54053113,0.00015746,2]
[332724657,1721483439320,-452.96284597,0.00015746,2]
[332724658,1721483439332,-2084.63785308,0.00015746,2]
[332724659,1721483439342,-600.0568444,0.00015751,2]
[332724660,1721483439351,-1638.62228996,0.00015751,2]
[332724661,1721483439362,-574.74896571,0.00015751,2]
[332724662,1721483439371,-518.89796857,0.00015751,2]
[332724663,1721483439381,-663.36487868,0.00015751,2]
[332724664,1721483439391,-154.343231,0.00015791,2]
[332724665,1721483439400,-151.825822,0.00015791,2]
[332724666,1721483439410,-286.505557,0.00015791,2]
[332724667,1721483439419,-355.2695,0.00015791,2]
[332724668,1721483439431,-158.774847,0.00015791,2]
[332724669,1721483439441,-153.0,0.000158,2]
[332724670,1721483439450,-153.0,0.000158,2]
[332724671,1721483439460,-285.1295,0.00015851,2]
[332724672,1721483439469,-285.1295,0.00015851,2]
[332724673,1721483439479,-287.38821308,0.00015851,2]
[332724674,1721483439489,-208.49284405,0.00015851,2]
[332724675,1721483439499,-154.88921117,0.00015851,2]
[332724676,1721483439509,-375.44925905,0.00015851,2]
[332724677,1721483439519,-209.59381941,0.00015851,2]
[332724678,1721483439528,-209.59381941,0.00015851,2]
[332724679,1721483439538,-736.75996205,0.00015854,2]
[332724680,1721483439548,-183.46642179,0.000159,2]
[332724681,1721483439557,-5192.96096747,0.00015913,2]
[332724682,1721483439567,-50158.4498083,0.00015942,2]
[332724683,1721483439576,-50158.4498083,0.00015944,2]
[332724684,1721483439586,-285.1295,0.00015952,2]
[332724685,1721483439596,-285.1295,0.00015952,2]
[332724686,1721483439605,-285.1295,0.00015952,2]
[332724687,1721483439615,-285.1295,0.00015952,2]
[332724688,1721483439625,-285.1295,0.00015952,2]
[332724689,1721483439634,-285.1295,0.00015952,2]
[332724690,1721483439644,-154.79103211,0.00015952,2]
[332724691,1721483439654,-319.30268651,0.00015952,2]
[332724692,1721483439664,-492.98180621,0.00015952,2]
[332724693,1721483439673,-243.23664462,0.00015952,2]
[332724694,1721483439684,-156.2865266,0.00015952,2]
[332724695,1721483439693,-263.29031622,0.00015952,2]
[332724696,1721483439702,-385.9910749,0.00015952,2]
[332724697,1721483439711,-285.1295,0.00015954,2]
[332724698,1721483439720,-285.1295,0.00015954,2]
[332724699,1721483439730,-367.31035882,0.00015968,2]
[332724700,1721483439739,-154.343231,0.00015988,2]
[332724701,1721483439748,-151.825822,0.00015988,2]
[332724702,1721483439759,-286.505557,0.00015988,2]
[332724703,1721483439768,-355.2695,0.00015988,2]
[332724704,1721483439778,-758.75360667,0.00015995,2]
[332724705,1721483439788,-157.0678716,0.00016038,2]
[332724706,1721483439797,-5481.02975558,0.00016038,2]
[332724707,1721483439806,-3085.40967143,0.00016038,2]
[332724708,1721483439816,-285.1295,0.00016038,2]
[332724709,1721483439825,-285.129506,0.00016038,2]
[332724710,1721483439834,-50158.4498083,0.00016085,2]
[332724711,1721483439844,-41767.709666,0.00016095,5]
[332724712,1721483439855,-1000.0,0.00016095,2]
[332724713,1721483439864,-1000.0,0.00016095,2]
[332724714,1721483439874,-1000.0,0.00016095,2]
[332724715,1721483439884,-1000.0,0.00016095,2]
[332724716,1721483439894,-1000.0,0.00016095,2]
[332724717,1721483439904,-1000.0,0.00016095,2]
[332724718,1721483439914,-1000.0,0.00016095,2]
[332724719,1721483439924,-1000.0,0.00016095,2]
[332724720,1721483439935,-1000.0,0.00016095,2]
[332724721,1721483439945,-1000.0,0.00016095,2]
[332724722,1721483439958,-1000.0,0.00016095,2]
[332724723,1721483439968,-1000.0,0.00016095,2]
[332724724,1721483439977,-1000.0,0.00016095,2]
[332724725,1721483439986,-1000.0,0.00016095,2]
[332724726,1721483439997,-1000.0,0.00016095,2]
[332724727,1721483440007,-1029.617755,0.00016095,2]
[332724728,1721483440017,-664.93308314,0.00016095,2]
[332724729,1721483440027,-726.55100361,0.00016095,2]
[332724730,1721483440041,-982.09965539,0.00016095,2]
[332724731,1721483440052,-156.17588773,0.0001611,2]
[332724732,1721483440062,-1510.9940082,0.0001611,2]
[332724733,1721483440073,-155.05188196,0.0001611,2]
[332724734,1721483440083,-251.31725499,0.00016159,2]
[332724735,1721483440093,-195.83024215,0.00016159,2]
[332724736,1721483440102,-941.37701693,0.00016159,2]
[332724737,1721483440112,-404.21603118,0.00016159,2]
[332724738,1721483440122,-341.5888685,0.00016159,2]
[332724739,1721483440132,-526.68531291,0.00016159,2]
[332724740,1721483440142,-404.21603118,0.00016159,2]
[332724741,1721483440152,-397.51518,0.00016164,2]
[332724742,1721483440162,-397.51518,0.00016164,2]
[332724743,1721483440173,-397.51518,0.00016164,2]
[332724744,1721483440183,-397.51518,0.00016164,2]
[332724745,1721483440192,-397.51518,0.00016164,2]
[332724746,1721483440202,-397.51518,0.00016164,2]
[332724747,1721483440212,-166.666666,0.00016164,2]
[332724748,1721483440223,-154.343231,0.00016186,2]
[332724749,1721483440233,-151.825822,0.00016186,2]
[332724750,1721483440242,-286.505557,0.00016186,2]
[332724751,1721483440251,-355.2695,0.00016186,2]
[332724752,1721483440263,-166.4603234,0.00016263,2]
[332724753,1721483440272,-100316.899617,0.0001627,2]
[332724754,1721483440282,-171118.24298218,0.0001629,5]
[332724755,1721483440293,-48470.86099382,0.0001629,2]
[332724756,1721483440302,-1742.367565,0.000163,2]
[332724757,1721483440311,-196.20580808,0.00016309,2]
[332724758,1721483440321,-533.21232689,0.00016309,2]
[332724759,1721483440330,-156.06630466,0.00016309,2]
[332724760,1721483440339,-155.31248135,0.00016309,2]
[332724761,1721483440349,-154.76012181,0.00016309,2]
[332724762,1721483440359,-403.19686744,0.00016309,2]
[332724765,1721483440571,-2969.61760868,0.00016342,2]
[332724766,1721483440582,-730.3093945,0.00016343,2]
[332724767,1721483440592,-504.0,0.00016344,2]
[332724768,1721483440602,-397.51518,0.00016347,2]
[332724769,1721483440613,-397.51518,0.00016347,2]
[332724770,1721483440624,-397.51518,0.00016347,2]
[332724771,1721483440633,-397.51518,0.00016347,2]
[332724772,1721483440643,-4086.29321979,0.00016347,2]
[332724773,1721483440652,-1782.5947423,0.00016347,2]
[332724774,1721483440662,-1287.39213435,0.0001638,2]
[332724775,1721483440685,-25152.0937667,0.0001638,2]
[332724776,1721483441368,-408.62137003,0.00015851,2]
[332724777,1721483441378,-1500.0,0.00016095,2]
[332724778,1721483441388,-16404.44989065,0.0001638,2]
[332724779,1721483441398,-397.51518,0.0001638,2]
[332724780,1721483441407,-397.51518,0.0001638,2]
[332724781,1721483441416,-154.343231,0.00016383,2]
[332724782,1721483441426,-151.825822,0.00016383,2]
[332724783,1721483441437,-286.505557,0.00016383,2]
[332724784,1721483441446,-355.2695,0.00016383,2]
[332724785,1721483441456,-152.0,0.0001639,2]
[332724786,1721483441465,-397.51518,0.0001639,2]
[332724787,1721483441475,-397.51518,0.0001639,2]
[332724788,1721483441484,-25253.4077337,0.000164,2]
[332724789,1721483441493,-7519.14402006,0.000164,2]
[332724790,1721483441505,-2899.30423513,0.000164,2]
[332724791,1721483441515,-397.51518,0.000164,2]
[332724792,1721483441524,-397.51518,0.000164,2]
[332724793,1721483441535,-397.51518,0.00016427,2]
[332724794,1721483441544,-397.51518,0.00016427,2]
[332724795,1721483441554,-397.51518,0.00016428,2]
[332724796,1721483441565,-397.515181,0.00016428,2]
[332724797,1721483441575,-500.0,0.00016438,2]
[332724798,1721483441588,-606.79,0.00016438,2]
[332724799,1721483441598,-557.3,0.00016438,2]
[332724800,1721483441607,-502.60980733,0.00016438,2]
[332724801,1721483441617,-500.0,0.00016438,2]
[332724802,1721483441627,-500.0,0.00016438,2]
[332724803,1721483441639,-525.96507878,0.00016438,2]
[332724804,1721483441649,-501.58706672,0.00016438,2]
[332724805,1721483441659,-500.0,0.00016438,2]
[332724806,1721483441669,-500.0,0.00016438,2]
[332724807,1721483441679,-500.0,0.00016438,2]
[332724808,1721483441689,-500.0,0.00016438,2]
[332724809,1721483441699,-500.0,0.00016438,2]
[332724810,1721483441708,-500.0,0.00016438,2]
[332724811,1721483441719,-500.0,0.00016438,2]
[332724812,1721483441730,-563.05,0.00016438,2]
[332724813,1721483441739,-613.18,0.00016438,2]
[332724814,1721483441749,-500.0,0.00016438,2]
[332724815,1721483441758,-500.0,0.00016438,2]
[332724816,1721483441767,-500.0,0.00016438,2]
[332724817,1721483441777,-500.97603392,0.00016438,2]
[332724818,1721483441787,-500.0,0.00016438,2]
[332724819,1721483441797,-500.0,0.00016438,2]
[332724820,1721483441807,-500.0,0.00016438,2]
[332724821,1721483441816,-500.0,0.00016438,2]
[332724822,1721483441826,-2292.93,0.00016438,2]
[332724823,1721483441836,-500.0,0.00016438,2]
[332724824,1721483441846,-814.94,0.00016438,2]
[332724825,1721483441855,-500.0,0.00016438,2]
[332724826,1721483441865,-254.88943529,0.00016438,2]
[332724827,1721483441875,-500.0,0.00016438,2]
[332724828,1721483441884,-500.0,0.00016438,2]
[332724829,1721483441894,-1342.37,0.00016438,2]
[332724830,1721483441904,-687.7,0.00016438,2]
[332724831,1721483441913,-500.0,0.00016438,2]
[332724832,1721483441923,-500.0,0.00016438,2]
[332724833,1721483441935,-500.0,0.00016438,2]
[332724834,1721483441944,-500.0,0.00016438,2]
[332724835,1721483441954,-500.0,0.00016438,2]
[332724836,1721483441963,-500.0,0.00016438,2]
[332724837,1721483441972,-500.0,0.00016438,2]
[332724838,1721483441984,-548.57,0.00016438,2]
[332724839,1721483441995,-500.0,0.00016438,2]
[332724840,1721483442004,-500.0,0.00016438,2]
[332724841,1721483442013,-1134.42,0.00016438,2]
[332724842,1721483442023,-500.0,0.00016438,2]
[332724843,1721483442032,-511.02,0.00016438,2]
[332724844,1721483442041,-667.35,0.00016438,2]
[332724845,1721483442051,-500.0,0.00016438,2]
[332724846,1721483442060,-500.0,0.00016438,2]
[332724847,1721483442070,-500.0,0.00016438,2]
[332724848,1721483442079,-500.0,0.00016438,2]
[332724849,1721483442089,-876.76,0.00016438,2]
[332724850,1721483442098,-500.0,0.00016438,2]
[332724851,1721483442108,-500.0,0.00016438,2]
[332724852,1721483442117,-500.0,0.00016438,2]
[332724853,1721483442127,-500.0,0.00016438,2]
[332724854,1721483442136,-500.0,0.00016438,2]
[332724855,1721483442145,-178.99459703,0.00016438,2]
[332724856,1721483442154,-507.61720522,0.00016438,2]
[332724857,1721483442164,-502.29979491,0.00016438,2]
[332724858,1721483442173,-500.0,0.00016438,2]
[332724859,1721483442185,-503.1602647,0.00016438,2]
[332724860,1721483442196,-500.0,0.00016438,2]
[332724861,1721483442205,-500.0,0.00016438,2]
[332724862,1721483442215,-500.0,0.00016438,2]
[332724863,1721483442224,-500.0,0.00016438,2]
[332724864,1721483442233,-500.0,0.00016438,2]
[332724865,1721483442242,-500.0,0.00016438,2]
[332724866,1721483442252,-617.81,0.00016438,2]
[332724867,1721483442261,-500.0,0.00016438,2]
[332724868,1721483442270,-500.0,0.00016438,2]
[332724869,1721483442279,-502.53665572,0.00016438,2]
[332724870,1721483442289,-1068.47,0.00016438,2]
[332724871,1721483442300,-500.0,0.00016438,2]
[332724872,1721483442311,-573.07,0.00016438,2]
[332724873,1721483442322,-500.0,0.00016438,2]
[332724874,1721483442332,-556.66494551,0.00016438,2]
[332724875,1721483442342,-500.0,0.00016438,2]
[332724876,1721483442351,-500.0,0.00016438,2]
[332724877,1721483442363,-1083.95,0.00016438,2]
[332724878,1721483442372,-500.0,0.00016438,2]
[332724879,1721483442383,-500.0,0.00016438,2]
[332724880,1721483442393,-502.76716104,0.00016438,2]
[332724881,1721483442403,-502.41682834,0.00016438,2]
[332724882,1721483442412,-500.0,0.00016438,2]
[332724883,1721483442422,-500.0,0.00016438,2]
[332724884,1721483442434,-500.0,0.00016438,2]
[332724885,1721483442444,-500.0,0.00016438,2]
[332724886,1721483442454,-2716.26,0.00016438,2]
[332724887,1721483442464,-501.28590095,0.00016438,2]
[332724888,1721483442475,-500.0,0.00016438,2]
[332724889,1721483442485,-500.0,0.00016438,2]
[332724890,1721483442496,-500.0,0.00016438,2]
[332724891,1721483442506,-502.03808671,0.00016438,2]
[332724892,1721483442517,-500.0,0.00016438,2]
[332724893,1721483442528,-500.0,0.00016438,2]
[332724894,1721483442538,-500.0,0.00016438,2]
[332724895,1721483442549,-398.38256931,0.00016438,2]
[332724896,1721483442559,-2666.22,0.00016438,2]
[332724897,1721483442568,-500.0,0.00016438,2]
[332724898,1721483442577,-500.0,0.00016438,2]
[332724899,1721483442587,-500.0,0.00016438,2]
[332724900,1721483442597,-511.49,0.00016438,2]
[332724901,1721483442608,-500.0,0.00016438,2]
[332724902,1721483442618,-500.0,0.00016438,2]
[332724903,1721483442628,-503.24791271,0.00016438,2]
[332724904,1721483442639,-500.0,0.00016438,2]
[332724905,1721483442649,-501.43999562,0.00016438,2]
[332724906,1721483442659,-500.0,0.00016438,2]
[332724907,1721483442671,-1787.62,0.00016438,2]
[332724908,1721483442683,-2486.66,0.00016438,2]
[332724909,1721483442694,-568.24,0.00016438,2]
[332724910,1721483442703,-500.0,0.00016438,2]
[332724911,1721483442714,-500.0,0.00016438,2]
[332724912,1721483442723,-3088.35,0.00016438,2]
[332724913,1721483442733,-500.0,0.00016438,2]
[332724914,1721483442743,-815.4,0.00016438,2]
[332724915,1721483442753,-500.0,0.00016438,2]
[332724916,1721483442763,-500.0,0.00016438,2]
[332724917,1721483442773,-679.34,0.00016438,2]
[332724918,1721483442783,-500.0,0.00016438,2]
[332724919,1721483442794,-500.0,0.00016438,2]
[332724920,1721483442805,-1059.87,0.00016438,2]
[332724921,1721483442815,-500.0,0.00016438,2]
[332724922,1721483442825,-3338.31,0.00016438,2]
[332724923,1721483442834,-500.0,0.00016438,2]
[332724924,1721483442844,-535.2,0.00016438,2]
[332724925,1721483442853,-500.0,0.00016438,2]
[332724926,1721483442864,-913.0,0.00016438,2]
[332724927,1721483442873,-619.46,0.00016438,2]
[332724928,1721483442883,-503.96679384,0.00016438,2]
[332724929,1721483442892,-997.14,0.00016438,2]
[332724930,1721483442901,-213.5647246,0.00016438,2]
[332724931,1721483442910,-761.62,0.00016438,2]
[332724932,1721483442920,-2157.65,0.00016438,2]
[332724933,1721483442930,-500.0,0.00016438,2]
[332724934,1721483442939,-504.33314707,0.00016438,2]
[332724935,1721483442949,-504.29336531,0.00016438,2]
[332724936,1721483442960,-524.75018145,0.00016438,2]
[332724937,1721483442977,-623.08,0.00016438,2]
[332724938,1721483442987,-677.52,0.00016438,2]
[332724939,1721483442999,-500.0,0.00016438,2]
[332724940,1721483443008,-506.27059481,0.00016438,2]
[332724941,1721483443017,-1197.12,0.00016438,2]
[332724942,1721483443028,-500.0,0.00016438,2]
[332724943,1721483443038,-500.0,0.00016438,2]
[332724944,1721483443048,-506.666072,0.00016438,2]
[332724945,1721483443060,-500.0,0.00016438,2]
[332724946,1721483443070,-500.0,0.00016438,2]
[332724947,1721483443080,-1014.64,0.00016438,2]
[332724948,1721483443090,-500.0,0.00016438,2]
[332724950,1721483443099,-500.0,0.00016438,2]
[332724952,1721483443109,-501.22838301,0.00016438,2]
[332724954,1721483443119,-570.19,0.00016438,2]
[332724956,1721483443129,-500.0,0.00016438,2]
[332724957,1721483443140,-1369.86,0.00016438,2]
[332724958,1721483443149,-500.0,0.00016438,2]
[332724959,1721483443158,-500.0,0.00016438,2]
[332724960,1721483443168,-554.45,0.00016438,2]
[332724961,1721483443177,-526.22,0.00016438,2]
[332724962,1721483443189,-500.0,0.00016438,2]
[332724963,1721483443198,-648.63,0.00016438,2]
[332724964,1721483443208,-1813.58,0.00016438,2]
[332724965,1721483443217,-500.0,0.00016438,2]
[332724966,1721483443227,-500.0,0.00016438,2]
[332724967,1721483443236,-4464.76,0.00016438,2]
[332724968,1721483443245,-500.0,0.00016438,2]
[332724969,1721483443255,-500.0,0.00016438,2]
[332724970,1721483443264,-500.0,0.00016438,2]
[332724972,1721483443273,-501.43123297,0.00016438,2]
[332724974,1721483443283,-577.29,0.00016438,2]
[332724976,1721483443292,-500.85505249,0.00016438,2]
[332724977,1721483443302,-586.69,0.00016438,2]
[332724978,1721483443313,-582.28461375,0.00016438,2]
[332724979,1721483443323,-688.34,0.00016438,2]
[332724981,1721483443333,-500.0,0.00016438,2]
[332724982,1721483443342,-515.12988625,0.00016438,2]
[332724983,1721483443351,-1527.59,0.00016438,2]
[332724984,1721483443360,-1825.28,0.00016438,2]
[332724985,1721483443370,-514.32357617,0.00016438,2]
[332724986,1721483443379,-500.0,0.00016438,2]
[332724987,1721483443388,-819.69,0.00016438,2]
[332724989,1721483443397,-500.0,0.00016438,2]
[332724991,1721483443407,-500.0,0.00016438,2]
[332724993,1721483443416,-505.54319834,0.00016438,2]
[332724995,1721483443426,-826.56,0.00016438,2]
[332724997,1721483443440,-501.85885834,0.00016438,2]
[332724999,1721483443449,-500.0,0.00016438,2]
[332725001,1721483443458,-863.17,0.00016438,2]
[332725003,1721483443468,-500.0,0.00016438,2]
[332725005,1721483443477,-500.0,0.00016438,2]
[332725007,1721483443486,-500.0,0.00016438,2]
[332725009,1721483443497,-587.47,0.00016438,2]
[332725011,1721483443506,-517.43758687,0.00016438,2]
[332725013,1721483443516,-500.0,0.00016438,2]
[332725015,1721483443525,-504.38908166,0.00016438,2]
[332725016,1721483443535,-500.0,0.00016438,2]
[332725017,1721483443544,-500.0,0.00016438,2]
[332725018,1721483443553,-500.0,0.00016438,2]
[332725019,1721483443563,-558.9,0.00016438,2]
[332725021,1721483443572,-1284.47,0.00016438,2]
[332725023,1721483443581,-500.0,0.00016438,2]
[332725025,1721483443590,-1977.23,0.00016438,2]
[332725027,1721483443599,-500.0,0.00016438,2]
[332725030,1721483443611,-500.0,0.00016438,2]
[332725032,1721483443621,-500.0,0.00016438,2]
[332725034,1721483443632,-500.0,0.00016438,2]
[332725035,1721483443643,-500.0,0.00016438,2]
[332725036,1721483443652,-514.86963877,0.00016438,2]
[332725037,1721483443662,-500.935243,0.00016438,2]
[332725038,1721483443671,-500.0,0.00016438,2]
[332725039,1721483443681,-613.22,0.00016438,2]
[332725040,1721483443690,-500.0,0.00016438,2]
[332725041,1721483443700,-898.49,0.00016438,2]
[332725042,1721483443711,-500.0,0.00016438,2]
[332725043,1721483443722,-502.8922466,0.00016438,2]
[332725044,1721483443731,-500.0,0.00016438,2]
[332725045,1721483443740,-500.0,0.00016438,2]
[332725046,1721483443751,-500.0,0.00016438,2]
[332725047,1721483443760,-2845.95,0.00016438,2]
[332725048,1721483443771,-995.12,0.00016438,2]
[332725049,1721483443780,-500.0,0.00016438,2]
[332725050,1721483443790,-1806.43,0.00016438,2]
[332725051,1721483443801,-501.15558744,0.00016438,2]
[332725052,1721483443812,-500.0,0.00016438,2]
[332725053,1721483443824,-500.0,0.00016438,2]
[332725054,1721483443834,-500.0,0.00016438,2]
[332725055,1721483443846,-500.0,0.00016438,2]
[332725056,1721483443856,-500.0,0.00016438,2]
[332725057,1721483443866,-500.0,0.00016438,2]
[332725058,1721483443875,-521.45625736,0.00016438,2]
[332725059,1721483443884,-500.0,0.00016438,2]
[332725060,1721483443895,-500.3265989,0.00016438,2]
[332725061,1721483443905,-1339.44,0.00016438,2]
[332725062,1721483443916,-500.0,0.00016438,2]
[332725063,1721483443928,-500.0,0.00016438,2]
[332725064,1721483443939,-503.04863189,0.00016438,2]
[332725065,1721483443949,-893.45,0.00016438,2]
[332725066,1721483443959,-1766.94,0.00016438,2]
[332725067,1721483443970,-500.0,0.00016438,2]
[332725068,1721483443981,-2168.29,0.00016438,2]
[332725069,1721483443993,-503.08189526,0.00016438,2]
[332725070,1721483444002,-502.12365174,0.00016438,2]
[332725071,1721483444012,-500.0,0.00016438,2]
[332725072,1721483444024,-919.83,0.00016438,2]
[332725073,1721483444035,-335.80325809,0.00016438,2]
[332725074,1721483444045,-500.0,0.00016438,2]
[332725075,1721483444056,-893.48,0.00016438,2]
[332725076,1721483444065,-500.0,0.00016438,2]
[332725077,1721483444075,-403.82288252,0.00016438,2]
[332725078,1721483444084,-501.77387035,0.00016438,2]
[332725079,1721483444093,-518.16,0.00016438,2]
[332725080,1721483444103,-2115.41,0.00016438,2]
[332725081,1721483444112,-500.0,0.00016438,2]
[332725082,1721483444122,-1782.22,0.00016438,2]
[332725083,1721483444131,-500.0,0.00016438,2]
[332725084,1721483444142,-500.0,0.00016438,2]
[332725085,1721483444151,-505.93712617,0.00016438,2]
[332725086,1721483444161,-500.0,0.00016438,2]
[332725087,1721483444170,-500.0,0.00016438,2]
[332725088,1721483444180,-553.25924358,0.00016438,2]
[332725089,1721483444189,-718.1,0.00016438,2]
[332725090,1721483444198,-2215.74,0.00016438,2]
[332725091,1721483444208,-500.0,0.00016438,2]
[332725092,1721483444218,-750.56,0.00016438,2]
[332725093,1721483444228,-517.63525834,0.00016438,2]
[332725094,1721483444238,-500.0,0.00016438,2]
[332725095,1721483444248,-818.25,0.00016438,2]
[332725096,1721483444258,-614.81,0.00016438,2]
[332725097,1721483444268,-897.15,0.00016438,2]
[332725098,1721483444277,-500.0,0.00016438,2]
[332725099,1721483444479,-500.0,0.00016438,2]
[332725100,1721483444490,-500.0,0.00016438,2]
[332725101,1721483444501,-911.16,0.00016438,2]
[332725102,1721483444512,-500.0,0.00016438,2]
[332725103,1721483444521,-792.68,0.00016438,2]
[332725104,1721483444530,-934.76,0.00016438,2]
[332725105,1721483444540,-500.0,0.00016438,2]
[332725106,1721483444550,-500.0,0.00016438,2]
[332725107,1721483444560,-500.0,0.00016438,2]
[332725108,1721483444570,-856.4,0.00016438,2]
[332725109,1721483444580,-500.0,0.00016438,2]
[332725110,1721483444590,-1085.03,0.00016438,2]
[332725111,1721483444600,-500.0,0.00016438,2]
[332725112,1721483444609,-503.25317507,0.00016438,2]
[332725113,1721483444618,-500.0,0.00016438,2]
[332725114,1721483444628,-9427.7,0.00016438,2]
[332725115,1721483444639,-780.24,0.00016438,2]
[332725116,1721483444650,-679.27,0.00016438,2]
[332725117,1721483444660,-981.15,0.00016438,2]
[332725118,1721483444670,-551.34285931,0.00016438,2]
[332725119,1721483444680,-3913.13,0.00016438,2]
[332725120,1721483444692,-1010.44,0.00016438,2]
[332725121,1721483444701,-500.0,0.00016438,2]
[332725122,1721483444712,-500.0,0.00016438,2]
[332725123,1721483444721,-500.0,0.00016438,2]
[332725124,1721483444730,-4982.83,0.00016438,2]
[332725125,1721483444740,-1146.5,0.00016438,2]
[332725126,1721483444749,-500.0,0.00016438,2]
[332725127,1721483444761,-500.7278879,0.00016438,2]
[332725128,1721483444771,-229.1,0.00016438,2]
[332725129,1721483444780,-1540.74,0.00016438,2]
[332725130,1721483444790,-707.7,0.00016438,2]
[332725131,1721483444800,-500.0,0.00016438,2]
[332725132,1721483444810,-500.0,0.00016438,2]
[332725133,1721483444820,-671.32,0.00016438,2]
[332725134,1721483444829,-539.75121852,0.00016438,2]
[332725135,1721483444839,-511.37040743,0.00016438,2]
[332725136,1721483444849,-500.0,0.00016438,2]
[332725137,1721483444859,-3749.79,0.00016438,2]
[332725138,1721483444869,-503.5,0.00016438,2]
[332725139,1721483444878,-500.0,0.00016438,2]
[332725140,1721483444887,-2054.74,0.00016438,2]
[332725141,1721483444896,-587.43,0.00016438,2]
[332725142,1721483444905,-748.51,0.00016438,2]
[332725143,1721483444915,-500.0,0.00016438,2]
[332725144,1721483444924,-501.88657241,0.00016438,2]
[332725145,1721483444934,-502.86855471,0.00016438,2]
[332725146,1721483444943,-2483.04,0.00016438,2]
[332725147,1721483444953,-1172.42,0.00016438,2]
[332725148,1721483444964,-3683.77,0.00016438,2]
[332725149,1721483444975,-500.0,0.00016438,2]
[332725150,1721483444988,-509.5502719,0.00016438,2]
[332725151,1721483444998,-500.0,0.00016438,2]
[332725152,1721483445009,-1352.99,0.00016438,2]
[332725153,1721483445020,-5853.66,0.00016438,2]
[332725154,1721483445032,-502.45513774,0.00016438,2]
[332725155,1721483445042,-1724.91,0.00016438,2]
[332725156,1721483445054,-968.46,0.00016438,2]
[332725157,1721483445063,-500.0,0.00016438,2]
[332725158,1721483445074,-500.0,0.00016438,2]
[332725159,1721483445083,-500.0,0.00016438,2]
[332725160,1721483445092,-413.67578848,0.00016438,2]
[332725161,1721483445102,-745.11,0.00016438,2]
[332725162,1721483445111,-1955.66,0.00016438,2]
[332725163,1721483445121,-500.0,0.00016438,2]
[332725164,1721483445131,-1166.82,0.00016438,2]
[332725165,1721483445141,-500.0,0.00016438,2]
[332725166,1721483445150,-500.0,0.00016438,2]
[332725167,1721483445159,-500.0,0.00016438,2]
[332725168,1721483445168,-500.0,0.00016438,2]
[332725169,1721483445179,-500.0,0.00016438,2]
[332725170,1721483445188,-500.0,0.00016438,2]
[332725171,1721483445198,-500.0,0.00016438,2]
[332725172,1721483445207,-500.0,0.00016438,2]
[332725173,1721483445216,-500.0,0.00016438,2]
[332725174,1721483445226,-595.82,0.00016438,2]
[332725175,1721483445235,-500.0,0.00016438,2]